[Event "Titled Tuesday Blitz January 31 Early 2023"]
[White "Matt, Fabian"]
[Black "Belozerov, Andrei"]
[WhiteFideId "1623303"]
[BlackFideId "4120213"]
[WhiteElo "2308"]
[BlackElo "2461"]
[Result "0-1"]
[Round "05"]
[TimeControl "180+2"]
[Date "2023.01.31"]
[WhiteClock "0:00:01"]
[BlackClock "0:00:18"]

1. d4 {[%clk 0:03:00]}  d5 {[%clk 0:02:59]} 2. c4 {[%clk 0:03:00]}  e6 {[%clk 0:02:59]} 3. Nf3 {[%clk 0:03:00]}  Nf6 {[%clk 0:02:59]} 4. g3 {[%clk 0:03:00]}  dxc4 {[%clk 0:02:59]} 5. Bg2 {[%clk 0:03:00]}  a6 {[%clk 0:02:58]} 6. a4 {[%clk 0:02:57]}  Nc6 {[%clk 0:02:57]} 7. O-O {[%clk 0:02:56]}  Rb8 {[%clk 0:02:56]} 8. a5 {[%clk 0:02:45]}  b5 {[%clk 0:02:54]} 9. axb6 {[%clk 0:02:44]}  cxb6 {[%clk 0:02:54]} 10. Nc3 {[%clk 0:02:08]}  b5 {[%clk 0:02:47]} 11. e4 {[%clk 0:02:03]}  Be7 {[%clk 0:02:30]} 12. d5 {[%clk 0:02:01]}  exd5 {[%clk 0:02:22]} 13. exd5 {[%clk 0:02:00]}  Nb4 {[%clk 0:02:22]} 14. Bf4 {[%clk 0:02:00]}  Rb6 {[%clk 0:02:21]} 15. Ne5 {[%clk 0:01:46]}  O-O {[%clk 0:02:14]} 16. Nc6 {[%clk 0:01:40]}  Nxc6 {[%clk 0:02:11]} 17. dxc6 {[%clk 0:01:41]}  Be6 {[%clk 0:01:39]} 18. Be3 {[%clk 0:01:14]}  Qc7 {[%clk 0:01:24]} 19. Qd4 {[%clk 0:01:01]}  Rxc6 {[%clk 0:01:18]} 20. Bxc6 {[%clk 0:00:55]}  Qxc6 {[%clk 0:01:19]} 21. Rfd1 {[%clk 0:00:49]}  h6 {[%clk 0:01:16]} 22. Qb6 {[%clk 0:00:44]}  Qf3 {[%clk 0:01:13]} 23. Rxa6 {[%clk 0:00:20]}  b4 {[%clk 0:01:12]} 24. Qc6 {[%clk 0:00:15]}  Qxc6 {[%clk 0:01:02]} 25. Rxc6 {[%clk 0:00:16]}  bxc3 {[%clk 0:01:01]} 26. bxc3 {[%clk 0:00:16]}  Ra8 {[%clk 0:00:56]} 27. Bd4 {[%clk 0:00:13]}  Nd5 {[%clk 0:00:47]} 28. Re1 {[%clk 0:00:10]}  Bf6 {[%clk 0:00:45]} 29. Bxf6 {[%clk 0:00:07]}  Nxf6 {[%clk 0:00:44]} 30. Rc7 {[%clk 0:00:04]}  Ra3 {[%clk 0:00:43]} 31. Re3 {[%clk 0:00:03]}  Ra1+ {[%clk 0:00:42]} 32. Kg2 {[%clk 0:00:03]}  Nd5 {[%clk 0:00:41]} 33. Rxe6 {[%clk 0:00:02]}  fxe6 {[%clk 0:00:40]} 34. Rxc4 {[%clk 0:00:02]}  Ra2 {[%clk 0:00:38]} 35. Re4 {[%clk 0:00:03]}  Kf7 {[%clk 0:00:38]} 36. c4 {[%clk 0:00:04]}  Nf6 {[%clk 0:00:37]} 37. Rf4 {[%clk 0:00:04]}  Rc2 {[%clk 0:00:36]} 38. h4 {[%clk 0:00:04]}  e5 {[%clk 0:00:36]} 39. Rf5 {[%clk 0:00:04]}  Ke6 {[%clk 0:00:36]} 40. Rf3 {[%clk 0:00:04]}  Rxc4 {[%clk 0:00:35]} 41. Ra3 {[%clk 0:00:04]}  Rc7 {[%clk 0:00:33]} 42. Ra6+ {[%clk 0:00:04]}  Kf5 {[%clk 0:00:33]} 43. f3 {[%clk 0:00:04]}  Rc2+ {[%clk 0:00:32]} 44. Kh3 {[%clk 0:00:05]}  Rf2 {[%clk 0:00:28]} 45. Ra3 {[%clk 0:00:03]}  g5 {[%clk 0:00:24]} 46. hxg5 {[%clk 0:00:02]}  hxg5 {[%clk 0:00:24]} 47. g4+ {[%clk 0:00:01]}  Kf4 {[%clk 0:00:22]} 48. Ra4+ {[%clk 0:00:02]}  Kxf3 {[%clk 0:00:20]} 49. Rf4+ {[%clk 0:00:01]}  gxf4 {[%clk 0:00:19]} 50. g5 {[%clk 0:00:01]}  Ne4 {[%clk 0:00:18]} 0-1


[Site "https://www.chess.com"]

[Event "Titled Tuesday Blitz January 31 Early 2023"]
[White "Kvaloy, Aksel Bu"]
[Black "Myshakov, Fyodor"]
[WhiteFideId "1528815"]
[BlackFideId "14111284"]
[WhiteElo "2321"]
[BlackElo "2292"]
[Result "1-0"]
[Round "05"]
[TimeControl "180+2"]
[Date "2023.01.31"]
[WhiteClock "0:00:08"]
[BlackClock "0:00:14"]

1. d4 {[%clk 0:02:55]}  d5 {[%clk 0:02:59]} 2. c4 {[%clk 0:02:53]}  dxc4 {[%clk 0:02:59]} 3. Nf3 {[%clk 0:02:53]}  Nf6 {[%clk 0:02:59]} 4. e3 {[%clk 0:02:52]}  e6 {[%clk 0:03:00]} 5. Bxc4 {[%clk 0:02:52]}  c5 {[%clk 0:02:58]} 6. O-O {[%clk 0:02:52]}  a6 {[%clk 0:02:58]} 7. a4 {[%clk 0:02:53]}  Nc6 {[%clk 0:02:58]} 8. Nc3 {[%clk 0:02:52]}  cxd4 {[%clk 0:02:58]} 9. exd4 {[%clk 0:02:53]}  Nb4 {[%clk 0:02:58]} 10. Bg5 {[%clk 0:02:41]}  Be7 {[%clk 0:02:58]} 11. Qb3 {[%clk 0:02:29]}  Nbd5 {[%clk 0:02:56]} 12. Bxd5 {[%clk 0:02:20]}  Nxd5 {[%clk 0:02:55]} 13. Nxd5 {[%clk 0:02:11]}  Bxg5 {[%clk 0:02:50]} 14. Nxg5 {[%clk 0:02:10]}  Qxd5 {[%clk 0:02:37]} 15. Qxd5 {[%clk 0:02:09]}  exd5 {[%clk 0:02:38]} 16. Rfe1+ {[%clk 0:02:10]}  Kf8 {[%clk 0:02:29]} 17. Re5 {[%clk 0:02:10]}  h6 {[%clk 0:02:29]} 18. Rxd5 {[%clk 0:02:09]}  Bg4 {[%clk 0:02:06]} 19. Ne4 {[%clk 0:02:01]}  Be6 {[%clk 0:02:01]} 20. Rc5 {[%clk 0:02:01]}  Rd8 {[%clk 0:01:59]} 21. d5 {[%clk 0:01:51]}  Bf5 {[%clk 0:01:53]} 22. Nc3 {[%clk 0:01:46]}  Rc8 {[%clk 0:01:43]} 23. Rxc8+ {[%clk 0:01:37]}  Bxc8 {[%clk 0:01:44]} 24. Re1 {[%clk 0:01:37]}  f6 {[%clk 0:01:42]} 25. d6 {[%clk 0:01:13]}  Rg8 {[%clk 0:00:57]} 26. Re7 {[%clk 0:01:07]}  g5 {[%clk 0:00:57]} 27. Rc7 {[%clk 0:00:51]}  Bf5 {[%clk 0:00:45]} 28. Rxb7 {[%clk 0:00:48]}  Rg7 {[%clk 0:00:44]} 29. Rxg7 {[%clk 0:00:47]}  Kxg7 {[%clk 0:00:44]} 30. a5 {[%clk 0:00:35]}  Kf7 {[%clk 0:00:42]} 31. Na4 {[%clk 0:00:35]}  Ke6 {[%clk 0:00:26]} 32. Nc5+ {[%clk 0:00:29]}  Kxd6 {[%clk 0:00:27]} 33. Nxa6 {[%clk 0:00:29]}  Kc6 {[%clk 0:00:26]} 34. b4 {[%clk 0:00:16]}  Kb5 {[%clk 0:00:25]} 35. Nc7+ {[%clk 0:00:16]}  Kc6 {[%clk 0:00:15]} 36. Ne8 {[%clk 0:00:16]}  Be6 {[%clk 0:00:12]} 37. Nxf6 {[%clk 0:00:15]}  Kb5 {[%clk 0:00:13]} 38. h3 {[%clk 0:00:10]}  Bc8 {[%clk 0:00:12]} 39. Ng8 {[%clk 0:00:09]}  h5 {[%clk 0:00:12]} 40. Nf6 {[%clk 0:00:09]}  h4 {[%clk 0:00:11]} 41. Nh7 {[%clk 0:00:09]}  g4 {[%clk 0:00:11]} 42. hxg4 {[%clk 0:00:09]}  Bxg4 {[%clk 0:00:12]} 43. f3 {[%clk 0:00:09]}  Bc8 {[%clk 0:00:12]} 44. Kh2 {[%clk 0:00:09]}  Kxb4 {[%clk 0:00:12]} 45. Nf8 {[%clk 0:00:09]}  h3 {[%clk 0:00:08]} 46. g4 {[%clk 0:00:08]}  Kxa5 {[%clk 0:00:09]} 47. Kxh3 {[%clk 0:00:08]}  Kb6 {[%clk 0:00:09]} 48. Kh4 {[%clk 0:00:07]}  Kc7 {[%clk 0:00:08]} 49. Kg5 {[%clk 0:00:08]}  Kd8 {[%clk 0:00:09]} 50. Kf6 {[%clk 0:00:08]}  Ke8 {[%clk 0:00:09]} 51. Ng6 {[%clk 0:00:09]}  Bb7 {[%clk 0:00:09]} 52. f4 {[%clk 0:00:09]}  Bf3 {[%clk 0:00:09]} 53. g5 {[%clk 0:00:09]}  Bh5 {[%clk 0:00:09]} 54. f5 {[%clk 0:00:06]}  Be2 {[%clk 0:00:08]} 55. Kg7 {[%clk 0:00:06]}  Bd3 {[%clk 0:00:07]} 56. f6 {[%clk 0:00:06]}  Bc4 {[%clk 0:00:07]} 57. Ne5 {[%clk 0:00:06]}  Be6 {[%clk 0:00:07]} 58. g6 {[%clk 0:00:06]}  Bd5 {[%clk 0:00:07]} 59. f7+ {[%clk 0:00:07]}  Bxf7 {[%clk 0:00:06]} 60. gxf7+ {[%clk 0:00:08]}  Ke7 {[%clk 0:00:07]} 61. f8=Q+ {[%clk 0:00:08]}  Ke6 {[%clk 0:00:08]} 62. Qf6+ {[%clk 0:00:09]}  Kd5 {[%clk 0:00:09]} 63. Nf7 {[%clk 0:00:09]}  Ke4 {[%clk 0:00:10]} 64. Qe5+ {[%clk 0:00:09]}  Kd3 {[%clk 0:00:10]} 65. Qf4 {[%clk 0:00:08]}  Ke2 {[%clk 0:00:11]} 66. Qg3 {[%clk 0:00:08]}  Kd2 {[%clk 0:00:12]} 67. Qf3 {[%clk 0:00:08]}  Kc2 {[%clk 0:00:13]} 68. Qe3 {[%clk 0:00:09]}  Kd1 {[%clk 0:00:14]} 69. Qf2 {[%clk 0:00:09]}  Kc1 {[%clk 0:00:14]} 70. Ne5 {[%clk 0:00:08]}  Kb1 {[%clk 0:00:15]} 71. Nc4 {[%clk 0:00:07]}  Kc1 {[%clk 0:00:14]} 72. Qd2+ {[%clk 0:00:08]} 1-0


[Site "https://www.chess.com"]

[Event "Titled Tuesday Blitz January 31 Early 2023"]
[White "matenitian"]
[Black "Klose, Eli"]
[BlackFideId "16242955"]
[WhiteElo "2434"]
[BlackElo "1519"]
[Result "0-1"]
[Round "05"]
[TimeControl "180+2"]
[Date "2023.01.31"]
[WhiteClock "0:00:19"]
[BlackClock "0:00:57"]

1. e4 {[%clk 0:03:00]}  e6 {[%clk 0:02:59]} 2. d4 {[%clk 0:02:58]}  d5 {[%clk 0:02:59]} 3. Nd2 {[%clk 0:02:58]}  Be7 {[%clk 0:02:59]} 4. Ngf3 {[%clk 0:02:55]}  Nf6 {[%clk 0:02:59]} 5. Bd3 {[%clk 0:02:53]}  c5 {[%clk 0:02:58]} 6. exd5 {[%clk 0:02:48]}  exd5 {[%clk 0:02:58]} 7. O-O {[%clk 0:02:48]}  O-O {[%clk 0:02:58]} 8. c3 {[%clk 0:02:46]}  c4 {[%clk 0:02:57]} 9. Bc2 {[%clk 0:02:44]}  Bg4 {[%clk 0:02:57]} 10. Re1 {[%clk 0:02:41]}  Nc6 {[%clk 0:02:56]} 11. Nf1 {[%clk 0:02:40]}  b5 {[%clk 0:02:52]} 12. Ng3 {[%clk 0:02:38]}  b4 {[%clk 0:02:47]} 13. h3 {[%clk 0:02:37]}  Bd7 {[%clk 0:02:47]} 14. Nf5 {[%clk 0:02:29]}  Bxf5 {[%clk 0:02:37]} 15. Bxf5 {[%clk 0:02:28]}  g6 {[%clk 0:02:37]} 16. Bc2 {[%clk 0:02:26]}  Re8 {[%clk 0:02:38]} 17. Bg5 {[%clk 0:02:21]}  Qd6 {[%clk 0:02:32]} 18. Ne5 {[%clk 0:01:40]}  Nd7 {[%clk 0:01:50]} 19. Bf4 {[%clk 0:01:06]}  Ndxe5 {[%clk 0:01:45]} 20. dxe5 {[%clk 0:01:05]}  Qe6 {[%clk 0:01:46]} 21. Qg4 {[%clk 0:00:43]}  Red8 {[%clk 0:01:40]} 22. Rad1 {[%clk 0:00:37]}  Rac8 {[%clk 0:01:29]} 23. Bg3 {[%clk 0:00:32]}  Bc5 {[%clk 0:01:21]} 24. Ba4 {[%clk 0:00:26]}  Ne7 {[%clk 0:01:16]} 25. Kh2 {[%clk 0:00:23]}  h5 {[%clk 0:01:07]} 26. Qg5 {[%clk 0:00:19]}  Nf5 {[%clk 0:00:59]} 27. Bf4 {[%clk 0:00:19]}  Be7 {[%clk 0:00:57]} 0-1


[Site "https://www.chess.com"]

[Event "Titled Tuesday Blitz January 31 Early 2023"]
[White "Yelisieiev, Yevhenii"]
[Black "Jimenez, Joaquin"]
[WhiteFideId "14139642"]
[BlackFideId "109860"]
[WhiteElo "2418"]
[BlackElo "2195"]
[Result "1-0"]
[Round "05"]
[TimeControl "180+2"]
[Date "2023.01.31"]
[WhiteClock "0:00:30"]
[BlackClock "0:00:13"]

1. d4 {[%clk 0:03:00]}  Nf6 {[%clk 0:02:59]} 2. Nf3 {[%clk 0:03:01]}  e6 {[%clk 0:02:57]} 3. c4 {[%clk 0:03:00]}  b6 {[%clk 0:02:56]} 4. g3 {[%clk 0:02:58]}  Ba6 {[%clk 0:02:56]} 5. Qc2 {[%clk 0:02:58]}  Bb7 {[%clk 0:02:53]} 6. Bg2 {[%clk 0:02:58]}  d5 {[%clk 0:02:52]} 7. Ne5 {[%clk 0:02:53]}  Nbd7 {[%clk 0:02:51]} 8. O-O {[%clk 0:02:49]}  Be7 {[%clk 0:02:45]} 9. Nc3 {[%clk 0:02:46]}  O-O {[%clk 0:02:43]} 10. Bf4 {[%clk 0:02:38]}  c6 {[%clk 0:02:40]} 11. a4 {[%clk 0:02:33]}  Rc8 {[%clk 0:02:29]} 12. a5 {[%clk 0:02:32]}  dxc4 {[%clk 0:02:25]} 13. axb6 {[%clk 0:02:28]}  axb6 {[%clk 0:02:17]} 14. Nxc4 {[%clk 0:02:26]}  Nd5 {[%clk 0:02:13]} 15. Bd2 {[%clk 0:02:25]}  Ra8 {[%clk 0:02:05]} 16. e4 {[%clk 0:02:24]}  Nxc3 {[%clk 0:02:04]} 17. bxc3 {[%clk 0:02:23]}  b5 {[%clk 0:01:53]} 18. Ne3 {[%clk 0:02:20]}  Qb6 {[%clk 0:01:50]} 19. Qb2 {[%clk 0:02:07]}  Nf6 {[%clk 0:01:45]} 20. c4 {[%clk 0:01:38]}  Rfd8 {[%clk 0:01:36]} 21. e5 {[%clk 0:01:32]}  Ne8 {[%clk 0:01:31]} 22. Bc3 {[%clk 0:01:08]}  h5 {[%clk 0:01:16]} 23. Rxa8 {[%clk 0:01:00]}  Rxa8 {[%clk 0:01:13]} 24. Rb1 {[%clk 0:00:59]}  Ba6 {[%clk 0:00:53]} 25. d5 {[%clk 0:00:54]}  cxd5 {[%clk 0:00:44]} 26. cxd5 {[%clk 0:00:54]}  Rd8 {[%clk 0:00:25]} 27. d6 {[%clk 0:00:52]}  Bg5 {[%clk 0:00:25]} 28. Bd4 {[%clk 0:00:51]}  Qa5 {[%clk 0:00:25]} 29. f4 {[%clk 0:00:48]}  Bh6 {[%clk 0:00:23]} 30. Nc4 {[%clk 0:00:34]}  bxc4 {[%clk 0:00:21]} 31. Bb6 {[%clk 0:00:35]}  Qa4 {[%clk 0:00:14]} 32. Bxd8 {[%clk 0:00:34]}  Qd7 {[%clk 0:00:13]} 33. Ba5 {[%clk 0:00:31]}  h4 {[%clk 0:00:14]} 34. Qb6 {[%clk 0:00:30]}  Bc8 {[%clk 0:00:13]} 35. Bc6 {[%clk 0:00:30]} 1-0


[Site "https://www.chess.com"]

[Event "Titled Tuesday Blitz January 31 Early 2023"]
[White "Ambartsumova, Karina"]
[Black "Gressmann, Moritz"]
[WhiteFideId "4166299"]
[BlackFideId "24695084"]
[WhiteElo "2393"]
[BlackElo "2129"]
[Result "0-1"]
[Round "05"]
[TimeControl "180+2"]
[Date "2023.01.31"]
[WhiteClock "0:00:01"]
[BlackClock "0:00:17"]

1. Nf3 {[%clk 0:03:00]}  Nf6 {[%clk 0:02:59]} 2. c4 {[%clk 0:03:00]}  g6 {[%clk 0:02:59]} 3. g3 {[%clk 0:02:59]}  Bg7 {[%clk 0:02:59]} 4. Bg2 {[%clk 0:03:00]}  O-O {[%clk 0:03:00]} 5. d4 {[%clk 0:03:00]}  d5 {[%clk 0:02:58]} 6. cxd5 {[%clk 0:02:59]}  Nxd5 {[%clk 0:02:58]} 7. O-O {[%clk 0:02:57]}  Nb6 {[%clk 0:02:48]} 8. Nc3 {[%clk 0:02:52]}  Na6 {[%clk 0:02:47]} 9. e4 {[%clk 0:02:46]}  Bg4 {[%clk 0:02:44]} 10. d5 {[%clk 0:02:46]}  c6 {[%clk 0:02:38]} 11. h3 {[%clk 0:02:46]}  Bxf3 {[%clk 0:02:35]} 12. Qxf3 {[%clk 0:02:42]}  cxd5 {[%clk 0:02:32]} 13. exd5 {[%clk 0:02:37]}  Rc8 {[%clk 0:02:26]} 14. Bg5 {[%clk 0:02:17]}  Nc4 {[%clk 0:02:07]} 15. Rfe1 {[%clk 0:01:50]}  Re8 {[%clk 0:01:55]} 16. Rac1 {[%clk 0:01:21]}  Nxb2 {[%clk 0:01:40]} 17. Nb5 {[%clk 0:01:01]}  Rxc1 {[%clk 0:01:29]} 18. Rxc1 {[%clk 0:01:01]}  Qa5 {[%clk 0:01:07]} 19. Bf1 {[%clk 0:00:44]}  h6 {[%clk 0:00:56]} 20. Bf4 {[%clk 0:00:32]}  Qxa2 {[%clk 0:00:54]} 21. Nxa7 {[%clk 0:00:26]}  Nb4 {[%clk 0:00:52]} 22. Nb5 {[%clk 0:00:23]}  Qxd5 {[%clk 0:00:51]} 23. Bg2 {[%clk 0:00:16]}  Qxf3 {[%clk 0:00:50]} 24. Bxf3 {[%clk 0:00:17]}  N4d3 {[%clk 0:00:47]} 25. Rc7 {[%clk 0:00:16]}  Nxf4 {[%clk 0:00:47]} 26. gxf4 {[%clk 0:00:17]}  Nd3 {[%clk 0:00:44]} 27. f5 {[%clk 0:00:15]}  gxf5 {[%clk 0:00:44]} 28. Rxb7 {[%clk 0:00:14]}  Bf6 {[%clk 0:00:30]} 29. Nc7 {[%clk 0:00:12]}  Rc8 {[%clk 0:00:22]} 30. Be2 {[%clk 0:00:08]}  Nf4 {[%clk 0:00:21]} 31. Bf1 {[%clk 0:00:02]}  Kh7 {[%clk 0:00:18]} 32. h4 {[%clk 0:00:01]}  Rg8+ {[%clk 0:00:17]} 33. Kh1 {[%clk 0:00:01]}  Rg4 {[%clk 0:00:17]} 0-1


[Site "https://www.chess.com"]

[Event "Titled Tuesday Blitz January 31 Early 2023"]
[White "Bosnjak, Petar"]
[Black "Sliwicki, Damian"]
[WhiteFideId "14532581"]
[BlackFideId "1127128"]
[WhiteElo "2337"]
[BlackElo "2158"]
[Result "1-0"]
[Round "05"]
[TimeControl "180+2"]
[Date "2023.01.31"]
[WhiteClock "0:01:56"]
[BlackClock "0:00:04"]

1. d4 {[%clk 0:03:00]}  Nf6 {[%clk 0:02:57]} 2. c4 {[%clk 0:03:00]}  e6 {[%clk 0:02:55]} 3. Nf3 {[%clk 0:02:58]}  Bb4+ {[%clk 0:02:53]} 4. Bd2 {[%clk 0:02:58]}  Qe7 {[%clk 0:02:48]} 5. g3 {[%clk 0:02:56]}  O-O {[%clk 0:02:32]} 6. Bg2 {[%clk 0:02:55]}  Bxd2+ {[%clk 0:02:30]} 7. Qxd2 {[%clk 0:02:53]}  Ne4 {[%clk 0:02:21]} 8. Qc2 {[%clk 0:02:52]}  Qb4+ {[%clk 0:02:12]} 9. Nbd2 {[%clk 0:02:50]}  d5 {[%clk 0:01:32]} 10. a3 {[%clk 0:02:50]}  Qa5 {[%clk 0:01:22]} 11. b4 {[%clk 0:02:47]}  Qa6 {[%clk 0:01:22]} 12. cxd5 {[%clk 0:02:45]}  exd5 {[%clk 0:01:09]} 13. Nxe4 {[%clk 0:02:44]}  dxe4 {[%clk 0:01:10]} 14. Qxe4 {[%clk 0:02:44]}  Bd7 {[%clk 0:01:01]} 15. O-O {[%clk 0:02:38]}  Re8 {[%clk 0:00:57]} 16. Ne5 {[%clk 0:02:32]}  Nc6 {[%clk 0:00:52]} 17. f4 {[%clk 0:02:20]}  f6 {[%clk 0:00:42]} 18. b5 {[%clk 0:02:20]}  Qxb5 {[%clk 0:00:37]} 19. Qd5+ {[%clk 0:02:19]}  Qxd5 {[%clk 0:00:32]} 20. Bxd5+ {[%clk 0:02:20]}  Be6 {[%clk 0:00:27]} 21. Bxe6+ {[%clk 0:02:20]}  Rxe6 {[%clk 0:00:27]} 22. d5 {[%clk 0:02:20]}  Rd6 {[%clk 0:00:22]} 23. dxc6 {[%clk 0:02:14]}  fxe5 {[%clk 0:00:22]} 24. cxb7 {[%clk 0:02:14]}  Rb8 {[%clk 0:00:22]} 25. fxe5 {[%clk 0:02:14]}  Rb6 {[%clk 0:00:12]} 26. Rac1 {[%clk 0:02:11]}  R8xb7 {[%clk 0:00:11]} 27. Rc5 {[%clk 0:02:10]}  g6 {[%clk 0:00:09]} 28. Rfc1 {[%clk 0:02:09]}  Ra6 {[%clk 0:00:05]} 29. Rxc7 {[%clk 0:02:05]}  Rb2 {[%clk 0:00:04]} 30. Rd7 {[%clk 0:01:56]} 1-0


[Site "https://www.chess.com"]

[Event "Titled Tuesday Blitz January 31 Early 2023"]
[White "Lorenzo De La Riva, Lazaro"]
[Black "Martynov, Pavel"]
[WhiteFideId "2268809"]
[BlackFideId "4101260"]
[WhiteElo "2404"]
[BlackElo "2414"]
[Result "0-1"]
[Round "05"]
[TimeControl "180+2"]
[Date "2023.01.31"]
[WhiteClock "0:00:03"]
[BlackClock "0:00:05"]

1. d4 {[%clk 0:02:50]}  d5 {[%clk 0:02:59]} 2. c4 {[%clk 0:02:47]}  e6 {[%clk 0:03:00]} 3. Nf3 {[%clk 0:02:45]}  c5 {[%clk 0:03:00]} 4. cxd5 {[%clk 0:02:44]}  exd5 {[%clk 0:03:00]} 5. g3 {[%clk 0:02:43]}  Nc6 {[%clk 0:03:01]} 6. Bg2 {[%clk 0:02:43]}  Nf6 {[%clk 0:03:01]} 7. O-O {[%clk 0:02:43]}  Be7 {[%clk 0:03:02]} 8. dxc5 {[%clk 0:02:43]}  Bxc5 {[%clk 0:03:01]} 9. a3 {[%clk 0:02:43]}  O-O {[%clk 0:02:57]} 10. b4 {[%clk 0:02:42]}  Be7 {[%clk 0:02:58]} 11. Bb2 {[%clk 0:02:42]}  Bg4 {[%clk 0:02:57]} 12. Nc3 {[%clk 0:02:36]}  Re8 {[%clk 0:02:49]} 13. Rc1 {[%clk 0:02:34]}  a6 {[%clk 0:02:46]} 14. Na4 {[%clk 0:02:34]}  Ne4 {[%clk 0:02:45]} 15. Nd4 {[%clk 0:02:30]}  Bd7 {[%clk 0:02:36]} 16. f3 {[%clk 0:02:15]}  Nd6 {[%clk 0:02:29]} 17. Nxc6 {[%clk 0:02:11]}  bxc6 {[%clk 0:02:25]} 18. Bd4 {[%clk 0:01:51]}  Nc4 {[%clk 0:02:21]} 19. Ra1 {[%clk 0:01:44]}  a5 {[%clk 0:02:14]} 20. Nc5 {[%clk 0:01:16]}  Bf5 {[%clk 0:01:45]} 21. Qc1 {[%clk 0:00:59]}  Bg5 {[%clk 0:01:34]} 22. Qc3 {[%clk 0:00:51]}  Bd2 {[%clk 0:01:28]} 23. Qb3 {[%clk 0:00:44]}  Rxe2 {[%clk 0:01:25]} 24. Rf2 {[%clk 0:00:30]}  Be3 {[%clk 0:01:15]} 25. Bxe3 {[%clk 0:00:27]}  Rxe3 {[%clk 0:01:15]} 26. Qd1 {[%clk 0:00:25]}  Rxa3 {[%clk 0:00:57]} 27. g4 {[%clk 0:00:21]}  Rxa1 {[%clk 0:00:33]} 28. Qxa1 {[%clk 0:00:22]}  axb4 {[%clk 0:00:32]} 29. Qe1 {[%clk 0:00:22]}  Qb6 {[%clk 0:00:27]} 30. Qe7 {[%clk 0:00:18]}  Bg6 {[%clk 0:00:21]} 31. h4 {[%clk 0:00:14]}  h5 {[%clk 0:00:20]} 32. gxh5 {[%clk 0:00:14]}  Bxh5 {[%clk 0:00:20]} 33. Bh3 {[%clk 0:00:14]}  Qd8 {[%clk 0:00:14]} 34. Qxd8+ {[%clk 0:00:10]}  Rxd8 {[%clk 0:00:15]} 35. Nd3 {[%clk 0:00:08]}  Rb8 {[%clk 0:00:12]} 36. f4 {[%clk 0:00:07]}  b3 {[%clk 0:00:11]} 37. Nb2 {[%clk 0:00:06]}  Nxb2 {[%clk 0:00:09]} 38. Rxb2 {[%clk 0:00:07]}  c5 {[%clk 0:00:09]} 39. Bg2 {[%clk 0:00:06]}  Rd8 {[%clk 0:00:03]} 40. Rxb3 {[%clk 0:00:06]}  d4 {[%clk 0:00:03]} 41. Be4 {[%clk 0:00:02]}  Bg6 {[%clk 0:00:02]} 42. f5 {[%clk 0:00:01]}  Bh5 {[%clk 0:00:02]} 43. Bd3 {[%clk 0:00:02]}  Bf3 {[%clk 0:00:02]} 44. Rb5 {[%clk 0:00:02]}  Rc8 {[%clk 0:00:02]} 45. Rb7 {[%clk 0:00:02]}  c4 {[%clk 0:00:03]} 46. Bb1 {[%clk 0:00:02]}  c3 {[%clk 0:00:03]} 47. Ba2 {[%clk 0:00:02]}  c2 {[%clk 0:00:03]} 48. Rxf7 {[%clk 0:00:02]}  Kh8 {[%clk 0:00:03]} 49. Kf2 {[%clk 0:00:03]}  c1=Q {[%clk 0:00:03]} 50. f6 {[%clk 0:00:03]}  Qe3+ {[%clk 0:00:04]} 51. Kg3 {[%clk 0:00:03]}  Bd5+ {[%clk 0:00:04]} 52. Kg4 {[%clk 0:00:03]}  Bxf7 {[%clk 0:00:05]} 0-1


[Site "https://www.chess.com"]

[Event "Titled Tuesday Blitz January 31 Early 2023"]
[White "Prieto Aranguren, Alain"]
[Black "Kim, Sergey"]
[WhiteFideId "2268906"]
[BlackFideId "13700570"]
[WhiteElo "2258"]
[BlackElo "2295"]
[Result "0-1"]
[Round "05"]
[TimeControl "180+2"]
[Date "2023.01.31"]
[WhiteClock "0:00:51"]
[BlackClock "0:01:01"]

1. e4 {[%clk 0:02:56]}  e5 {[%clk 0:02:59]} 2. Ne2 {[%clk 0:02:55]}  Nc6 {[%clk 0:02:58]} 3. Ng3 {[%clk 0:02:54]}  g6 {[%clk 0:02:51]} 4. Be2 {[%clk 0:02:54]}  Bg7 {[%clk 0:02:51]} 5. h4 {[%clk 0:02:54]}  h5 {[%clk 0:02:50]} 6. d3 {[%clk 0:02:51]}  d6 {[%clk 0:02:49]} 7. Nd2 {[%clk 0:02:50]}  Nh6 {[%clk 0:02:47]} 8. Nf3 {[%clk 0:02:50]}  Ng4 {[%clk 0:02:47]} 9. Ng5 {[%clk 0:02:49]}  Qe7 {[%clk 0:02:38]} 10. c3 {[%clk 0:02:48]}  f6 {[%clk 0:02:35]} 11. Nf3 {[%clk 0:02:45]}  Bd7 {[%clk 0:02:31]} 12. Nh2 {[%clk 0:02:45]}  f5 {[%clk 0:02:25]} 13. Bg5 {[%clk 0:02:43]}  Bf6 {[%clk 0:02:25]} 14. Bxf6 {[%clk 0:02:40]}  Qxf6 {[%clk 0:02:25]} 15. Nf3 {[%clk 0:02:30]}  O-O-O {[%clk 0:02:14]} 16. Ng5 {[%clk 0:02:26]}  Ne7 {[%clk 0:02:04]} 17. f3 {[%clk 0:02:23]}  Ne3 {[%clk 0:02:02]} 18. Qb3 {[%clk 0:02:16]}  Nxg2+ {[%clk 0:01:59]} 19. Kf2 {[%clk 0:02:16]}  Nxh4 {[%clk 0:01:49]} 20. Rxh4 {[%clk 0:01:50]}  Qxg5 {[%clk 0:01:49]} 21. Rh2 {[%clk 0:01:42]}  f4 {[%clk 0:01:38]} 22. Nf1 {[%clk 0:01:36]}  Qf6 {[%clk 0:01:38]} 23. Nd2 {[%clk 0:01:33]}  Be6 {[%clk 0:01:29]} 24. Qa3 {[%clk 0:01:32]}  Kb8 {[%clk 0:01:29]} 25. Nb3 {[%clk 0:01:30]}  g5 {[%clk 0:01:23]} 26. Rg1 {[%clk 0:01:25]}  g4 {[%clk 0:01:20]} 27. fxg4 {[%clk 0:01:23]}  hxg4 {[%clk 0:01:20]} 28. Rxh8 {[%clk 0:01:22]}  Rxh8 {[%clk 0:01:20]} 29. Bxg4 {[%clk 0:01:22]}  Rh2+ {[%clk 0:01:14]} 30. Rg2 {[%clk 0:00:51]}  Qh4+ {[%clk 0:01:04]} 31. Kf3 {[%clk 0:00:51]}  Bxg4+ {[%clk 0:01:01]} 0-1


[Site "https://www.chess.com"]